fUSD/lending_fUSD_20240708
["ID","MTS","AMOUNT","RATE_DAILY","PERIOD"]
[331494970,1720440303727,-500.0,0.00049863,120]
[331494971,1720440303801,-500.0,0.00049863,120]
[331494972,1720440303870,-500.0,0.00049863,120]
[331494973,1720440303941,-500.0,0.00049863,120]
[331494974,1720440304012,-190.07442917,0.00049863,120]
[331494975,1720440304084,-500.0,0.00049863,120]
[331494976,1720440304155,-500.0,0.00049863,120]
[331494977,1720440304222,-348.86589326,0.00049863,120]
[331494978,1720440304288,-339.17067346,0.00049863,120]
[331494979,1720440304353,-1290.88,0.00049863,120]
[331494980,1720440304419,-500.0,0.00049863,120]
[331494981,1720440304489,-500.0,0.00049863,120]
[331494982,1720440304558,-500.0,0.00049863,120]
[331494983,1720440304626,-500.0,0.00049863,120]
[331494984,1720440304693,-500.0,0.00049863,120]
[331494985,1720440304759,-500.0,0.00049863,120]
[331494986,1720440304825,-500.0,0.00049863,120]
[331494987,1720440304897,-585.61,0.00049863,120]
[331494988,1720440304969,-500.0,0.00049863,120]
[331494989,1720440305043,-574.25,0.00049863,120]
[331494990,1720440305111,-500.0,0.00049863,120]
[331494991,1720440305181,-500.0,0.00049863,120]
[331494992,1720440305249,-500.0,0.00049863,120]
[331494993,1720440305319,-500.0,0.00049863,120]
[331494994,1720440305389,-500.0,0.00049863,120]
[331494995,1720440305457,-500.0,0.00049863,120]
[331494996,1720440305525,-500.0,0.00049863,120]
[331494997,1720440305592,-500.0,0.00049863,120]
[331494998,1720440305660,-500.0,0.00049863,120]
[331494999,1720440305726,-500.0,0.00049863,120]
[331495000,1720440305798,-500.0,0.00049863,120]
[331495001,1720440305869,-500.0,0.00049863,120]
[331495002,1720440305939,-321.36,0.00049863,120]
[331495003,1720440306007,-500.0,0.00049863,120]
[331495004,1720440306080,-417.23595188,0.00049863,120]
[331495005,1720440306150,-388.78178261,0.00049863,120]
[331495006,1720440306219,-500.0,0.00049863,120]
[331495007,1720440306288,-500.0,0.00049863,120]
[331495008,1720440306358,-500.0,0.00049863,120]
[331495009,1720440306431,-500.0,0.00049863,120]
[331495010,1720440306501,-500.0,0.00049863,120]
[331495011,1720440306570,-323.65199507,0.00049863,120]
[331495012,1720440306640,-891.99,0.00049863,120]
[331495013,1720440306710,-500.0,0.00049863,120]
[331495014,1720440306779,-500.0,0.00049863,120]
[331495015,1720440306855,-500.0,0.00049863,120]
[331495016,1720440306930,-500.0,0.00049863,120]
[331495017,1720440307003,-500.0,0.00049863,120]
[331495018,1720440307075,-500.0,0.00049863,120]
[331495019,1720440307143,-518.21,0.00049863,120]
[331495020,1720440307210,-500.0,0.00049863,120]
[331495021,1720440307549,-500.0,0.00049863,120]
[331495022,1720440307616,-973.06,0.00049863,120]
[331495023,1720440307680,-1101.05,0.00049863,120]
[331495024,1720440307742,-500.0,0.00049863,120]
[331495025,1720440307802,-500.0,0.00049863,120]
[331495026,1720440307864,-500.0,0.00049863,120]
[331495027,1720440307927,-500.0,0.00049863,120]
[331495028,1720440307993,-1143.52,0.00049863,120]
[331495029,1720440308057,-500.0,0.00049863,120]
[331495030,1720440308125,-500.0,0.00049863,120]
[331495031,1720440308189,-500.0,0.00049863,120]
[331495032,1720440308251,-541.04926175,0.00049863,120]
[331495033,1720440308313,-589.06,0.00049863,120]
[331495034,1720440308375,-500.0,0.00049863,120]
[331495035,1720440308439,-500.0,0.00049863,120]
[331495036,1720440308503,-500.0,0.00049863,120]
[331495037,1720440308568,-500.0,0.00049863,120]
[331495038,1720440308628,-729.17,0.00049863,120]
[331495039,1720440308689,-500.0,0.00049863,120]
[331495040,1720440308750,-500.0,0.00049863,120]
[331495041,1720440308813,-765.16,0.00049863,120]
[331495042,1720440308878,-500.0,0.00049863,120]
[331495043,1720440308943,-538.46,0.00049863,120]
[331495044,1720440309006,-273.55,0.00049863,120]
[331495045,1720440309072,-500.0,0.00049863,120]
[331495046,1720440309143,-500.0,0.00049863,120]
[331495047,1720440309208,-500.0,0.00049863,120]
[331495048,1720440309276,-500.0,0.00049863,120]
[331495049,1720440309341,-500.0,0.00049863,120]
[331495050,1720440309406,-500.0,0.00049863,120]
[331495051,1720440309473,-577.54,0.00049863,120]
[331495052,1720440309538,-987.37,0.00049863,120]
[331495053,1720440309604,-500.0,0.00049863,120]
[331495054,1720440309674,-500.0,0.00049863,120]
[331495055,1720440309742,-500.0,0.00049863,120]
[331495056,1720440309809,-500.0,0.00049863,120]
[331495057,1720440309877,-500.0,0.00049863,120]
[331495058,1720440309944,-509.76,0.00049863,120]
[331495059,1720440310015,-500.0,0.00049863,120]
[331495060,1720440310084,-707.5,0.00049863,120]
[331495061,1720440310150,-500.0,0.00049863,120]
[331495062,1720440310215,-500.0,0.00049863,120]
[331495063,1720440310280,-500.0,0.00049863,120]
[331495064,1720440310347,-943.37,0.00049863,120]
[331495065,1720440310416,-368.34,0.00049863,120]
[331495066,1720440310482,-500.0,0.00049863,120]
[331495067,1720440310546,-500.0,0.00049863,120]
[331495068,1720440310612,-500.0,0.00049863,120]
[331495069,1720440310678,-584.78,0.00049863,120]
[331495070,1720440310744,-500.0,0.00049863,120]
[331495071,1720440310810,-558.55,0.00049863,120]
[331495072,1720440310876,-500.0,0.00049863,120]
[331495073,1720440310946,-500.0,0.00049863,120]
[331495074,1720440311013,-500.0,0.00049863,120]
[331495075,1720440311080,-500.0,0.00049863,120]
[331495076,1720440311149,-718.31,0.00049863,120]
[331495077,1720440311210,-500.0,0.00049863,120]
[331495078,1720440311272,-500.0,0.00049863,120]
[331495079,1720440311334,-511.83,0.00049863,120]
[331495080,1720440311399,-374.54,0.00049863,120]
[331495081,1720440311463,-156.12,0.00049863,120]
[331495082,1720440311527,-500.0,0.00049863,120]
[331495083,1720440311593,-500.0,0.00049863,120]
[331495084,1720440311657,-389.82035515,0.00049863,120]
[331495085,1720440311719,-500.0,0.00049863,120]
[331495086,1720440311780,-500.0,0.00049863,120]
[331495087,1720440311839,-500.0,0.00049863,120]
[331495088,1720440311903,-500.0,0.00049863,120]
[331495089,1720440311961,-291.50244259,0.00049863,120]
[331495090,1720440312026,-500.0,0.00049863,120]
[331495091,1720440312090,-500.0,0.00049863,120]
[331495092,1720440312153,-588.46,0.00049863,120]
[331495093,1720440312216,-500.0,0.00049863,120]
[331495094,1720440312278,-500.0,0.00049863,120]
[331495095,1720440312339,-500.0,0.00049863,120]
[331495096,1720440312403,-500.0,0.00049863,120]
[331495097,1720440312465,-500.0,0.00049863,120]
[331495098,1720440312527,-725.12,0.00049863,120]
[331495099,1720440312590,-500.0,0.00049863,120]
[331495100,1720440312654,-510.12,0.00049863,120]
[331495101,1720440312717,-500.0,0.00049863,120]
[331495102,1720440312780,-1169.96,0.00049863,120]
[331495103,1720440312848,-150.86,0.00049863,120]
[331495104,1720440312913,-500.0,0.00049863,120]
[331495105,1720440312977,-501.14500776,0.00049863,120]
[331495106,1720440313048,-500.0,0.00049863,120]
[331495107,1720440313114,-297.9071769,0.00049863,120]
[331495108,1720440313180,-504.1983494,0.00049863,120]
[331495109,1720440313245,-500.0,0.00049863,120]
[331495110,1720440313308,-517.35135389,0.00049863,120]
[331495111,1720440313372,-691.49,0.00049863,120]
[331495112,1720440313439,-500.0,0.00049863,120]
[331495113,1720440313506,-500.0,0.00049863,120]
[331495114,1720440313577,-500.0,0.00049863,120]
[331495115,1720440313642,-500.0,0.00049863,120]
[331495116,1720440313706,-500.0,0.00049863,120]
[331495117,1720440313771,-500.0,0.00049863,120]
[331495118,1720440313836,-500.0,0.00049863,120]
[331495119,1720440313904,-500.0,0.00049863,120]
[331495120,1720440313969,-500.0,0.00049863,120]
[331495121,1720440314035,-500.0,0.00049863,120]
[331495122,1720440314105,-500.0,0.00049863,120]
[331495123,1720440314171,-256.28,0.00049863,120]
[331495124,1720440314237,-500.0,0.00049863,120]
[331495125,1720440314303,-340.86437124,0.00049863,120]
[331495126,1720440314585,-736.89,0.00049863,120]
[331495127,1720440314652,-500.0,0.00049863,120]
[331495128,1720440314719,-534.64722617,0.00049863,120]
[331495129,1720440314784,-500.0,0.00049863,120]
[331495130,1720440314852,-500.0,0.00049863,120]
[331495131,1720440314917,-500.0,0.00049863,120]
[331495132,1720440314984,-453.70326503,0.00049863,120]
[331495133,1720440315053,-500.0,0.00049863,120]
[331495134,1720440315120,-198.02,0.00049863,120]
[331495135,1720440315185,-514.40914895,0.00049863,120]
[331495136,1720440315254,-500.0,0.00049863,120]
[331495137,1720440315320,-500.0,0.00049863,120]
[331495138,1720440315384,-500.0,0.00049863,120]
[331495139,1720440315448,-500.0,0.00049863,120]
[331495140,1720440315514,-563.59686484,0.00049863,120]
[331495141,1720440315582,-500.0,0.00049863,120]
[331495142,1720440315651,-500.0,0.00049863,120]
[331495143,1720440315720,-500.0,0.00049863,120]
[331495144,1720440315790,-551.34256284,0.00049863,120]
[331495145,1720440315857,-500.0,0.00049863,120]
[331495146,1720440315926,-500.0,0.00049863,120]
[331495147,1720440315999,-500.0,0.00049863,120]
[331495148,1720440316069,-476.1979943,0.00049863,120]
[331495149,1720440316137,-500.0,0.00049863,120]
[331495150,1720440316203,-500.0,0.00049863,120]
[331495151,1720440316269,-500.0,0.00049863,120]
[331495152,1720440316334,-500.0,0.00049863,120]
[331495153,1720440316398,-471.86985007,0.00049863,120]
[331495154,1720440316459,-500.0,0.00049863,120]
[331495155,1720440316522,-500.0,0.00049863,120]
[331495156,1720440316586,-500.0,0.00049863,120]
[331495157,1720440316653,-500.0,0.00049863,120]
[331495158,1720440316718,-574.76606942,0.00049863,120]
[331495159,1720440316781,-500.0,0.00049863,120]
[331495160,1720440316844,-500.0,0.00049863,120]
[331495161,1720440316908,-500.0,0.00049863,120]
[331495162,1720440316972,-500.0,0.00049863,120]
[331495163,1720440317037,-500.0,0.00049863,120]
[331495164,1720440317100,-500.0,0.00049863,120]
[331495165,1720440317164,-270.71,0.00049863,120]
[331495166,1720440317227,-500.0,0.00049863,120]
[331495167,1720440317292,-500.0,0.00049863,120]
[331495168,1720440317356,-274.94,0.00049863,120]
[331495169,1720440317419,-264.41,0.00049863,120]
[331495170,1720440317480,-490.76671504,0.00049863,120]
[331495171,1720440317542,-500.0,0.00049863,120]
[331495172,1720440317605,-500.0,0.00049863,120]
[331495173,1720440317668,-500.0,0.00049863,120]
[331495174,1720440317729,-229.72038071,0.00049863,120]
[331495175,1720440317792,-500.0,0.00049863,120]
[331495176,1720440317857,-500.0,0.00049863,120]
[331495177,1720440317920,-561.83,0.00049863,120]
[331495178,1720440317986,-324.01330124,0.00049863,120]
[331495179,1720440318052,-500.0,0.00049863,120]
[331495180,1720440318116,-500.0,0.00049863,120]
[331495181,1720440318180,-500.0,0.00049863,120]
[331495182,1720440318244,-500.0,0.00049863,120]
[331495183,1720440318306,-500.0,0.00049863,120]
[331495184,1720440318370,-301.56059338,0.00049863,120]
[331495185,1720440318433,-500.0,0.00049863,120]
[331495186,1720440318502,-500.0,0.00049863,120]
[331495187,1720440318572,-500.0,0.00049863,120]
[331495188,1720440318640,-500.0,0.00049863,120]
[331495189,1720440318708,-500.0,0.00049863,120]
[331495190,1720440318774,-500.0,0.00049863,120]
[331495191,1720440318841,-500.0,0.00049863,120]
[331495192,1720440318910,-500.0,0.00049863,120]
[331495193,1720440318981,-500.0,0.00049863,120]
[331495194,1720440319053,-500.0,0.00049863,120]
[331495195,1720440319118,-757.16,0.00049863,120]
[331495196,1720440319183,-500.0,0.00049863,120]
[331495197,1720440319249,-500.0,0.00049863,120]
[331495198,1720440319314,-500.0,0.00049863,120]
[331495199,1720440319379,-519.91,0.00049863,120]
[331495200,1720440319445,-747.04,0.00049863,120]
[331495201,1720440319512,-500.0,0.00049863,120]
[331495202,1720440319577,-500.0,0.00049863,120]
[331495203,1720440319642,-500.0,0.00049863,120]
[331495204,1720440319704,-613.38,0.00049863,30]
[331495205,1720440319767,-500.0,0.00049863,120]
[331495206,1720440319832,-552.79,0.00049863,120]
[331495207,1720440319898,-500.0,0.00049863,120]
[331495208,1720440319964,-591.58,0.00049863,120]
[331495209,1720440320027,-500.0,0.00049863,120]
[331495210,1720440320095,-500.0,0.00049863,120]
[331495211,1720440320162,-500.0,0.00049863,120]
[331495212,1720440320226,-1172.19,0.00049863,120]
[331495213,1720440320289,-500.0,0.00049863,120]
[331495214,1720440320354,-500.0,0.00049863,120]
[331495215,1720440320412,-500.0,0.00049863,120]
[331495216,1720440320474,-1249.26,0.00049863,120]
[331495217,1720440320538,-557.8,0.00049863,120]
[331495218,1720440320603,-500.0,0.00049863,120]
[331495219,1720440320668,-500.0,0.00049863,120]
[331495220,1720440320731,-807.07,0.00049863,120]
[331495221,1720440320795,-500.0,0.00049863,120]
[331495222,1720440320858,-500.0,0.00049863,120]
[331495223,1720440320926,-500.0,0.00049863,120]
[331495224,1720440320994,-500.0,0.00049863,120]
[331495225,1720440321059,-800.07,0.00049863,120]
[331495226,1720440321122,-500.0,0.00049863,120]
[331495227,1720440321185,-500.0,0.00049863,120]
[331495228,1720440321248,-500.0,0.00049863,120]
[331495229,1720440321312,-500.0,0.00049863,120]
[331495230,1720440321585,-967.69,0.00049863,120]
[331495231,1720440321655,-500.0,0.00049863,120]
[331495232,1720440321726,-1110.78,0.00049863,120]
[331495233,1720440321790,-593.07,0.00049863,120]
[331495234,1720440321854,-666.97,0.00049863,120]
[331495235,1720440321916,-500.0,0.00049863,120]
[331495236,1720440321979,-496.24205537,0.00049863,120]
[331495237,1720440322046,-500.0,0.00049863,120]
[331495238,1720440322110,-663.11,0.00049863,120]
[331495239,1720440322176,-500.0,0.00049863,120]
[331495240,1720440322240,-484.87912632,0.00049863,120]
[331495241,1720440322304,-586.75,0.00049863,120]
[331495242,1720440322366,-500.0,0.00049863,120]
[331495243,1720440322432,-500.0,0.00049863,120]
[331495244,1720440322496,-500.0,0.00049863,120]
[331495245,1720440322560,-594.57,0.00049863,120]
[331495246,1720440322625,-500.0,0.00049863,120]
[331495247,1720440322691,-500.0,0.00049863,120]
[331495248,1720440322751,-500.0,0.00049863,120]
[331495249,1720440322814,-500.0,0.00049863,120]
[331495250,1720440322878,-500.0,0.00049863,120]
[331495251,1720440322942,-500.0,0.00049863,120]
[331495252,1720440323005,-500.0,0.00049863,120]
[331495253,1720440323072,-731.67,0.00049863,120]
[331495254,1720440323139,-500.0,0.00049863,120]
[331495255,1720440323201,-500.0,0.00049863,120]
[331495256,1720440323264,-727.03,0.00049863,120]
[331495257,1720440323327,-508.02696348,0.00049863,120]
[331495258,1720440323388,-500.0,0.00049863,120]
[331495259,1720440323451,-500.0,0.00049863,120]
[331495260,1720440323514,-500.0,0.00049863,120]
[331495261,1720440323576,-500.0,0.00049863,120]
[331495262,1720440323642,-556.36,0.00049863,120]
[331495263,1720440323705,-678.58,0.00049863,120]
[331495264,1720440323767,-507.09,0.00049863,120]
[331495265,1720440323830,-828.76,0.00049863,120]
[331495266,1720440323895,-500.0,0.00049863,120]
[331495267,1720440323964,-500.0,0.00049863,120]
[331495268,1720440324031,-500.0,0.00049863,120]
[331495269,1720440324099,-620.21221983,0.00049863,120]
[331495270,1720440324169,-500.0,0.00049863,120]
[331495271,1720440324234,-500.0,0.00049863,120]
[331495272,1720440324300,-500.0,0.00049863,120]
[331495273,1720440324367,-500.0,0.00049863,120]
[331495274,1720440324432,-564.32,0.00049863,120]
[331495275,1720440324499,-560.45,0.00049863,120]
[331495276,1720440324566,-890.2,0.00049863,120]
[331495277,1720440324632,-730.6,0.00049863,120]
[331495278,1720440324698,-500.0,0.00049863,120]
[331495279,1720440324764,-500.0,0.00049863,120]
[331495280,1720440324829,-795.04,0.00049863,120]
[331495281,1720440324896,-500.0,0.00049863,120]
[331495282,1720440324967,-500.0,0.00049863,120]
[331495283,1720440325035,-618.01,0.00049863,120]
[331495284,1720440325105,-551.18,0.00049863,120]
[331495285,1720440325172,-500.0,0.00049863,120]
[331495286,1720440325239,-500.0,0.00049863,120]
[331495287,1720440325306,-788.58,0.00049863,120]
[331495288,1720440325373,-500.0,0.00049863,120]
[331495289,1720440325438,-500.0,0.00049863,120]
[331495290,1720440325504,-500.0,0.00049863,120]
[331495291,1720440325570,-500.0,0.00049863,120]
[331495292,1720440325634,-720.18,0.00049863,120]
[331495293,1720440325700,-500.0,0.00049863,120]
[331495294,1720440325766,-500.0,0.00049863,120]
[331495295,1720440325829,-500.0,0.00049863,120]
[331495296,1720440325894,-500.0,0.00049863,120]
[331495297,1720440325961,-511.48,0.00049863,120]
[331495298,1720440326025,-500.0,0.00049863,120]
[331495299,1720440326089,-231.51574103,0.00049863,120]
[331495300,1720440326155,-500.0,0.00049863,120]
[331495301,1720440326219,-633.87,0.00049863,120]
[331495302,1720440326282,-885.43,0.00049863,120]
[331495303,1720440326344,-500.0,0.00049863,120]
[331495304,1720440326407,-536.5,0.00049863,120]
[331495305,1720440326467,-500.0,0.00049863,120]
[331495306,1720440326529,-500.0,0.00049863,120]
[331495307,1720440326594,-500.0,0.00049863,120]
[331495308,1720440326661,-500.0,0.00049863,120]
[331495309,1720440326728,-500.0,0.00049863,120]
[331495310,1720440326796,-739.48,0.00049863,120]
[331495311,1720440326861,-500.0,0.00049863,120]
[331495312,1720440326926,-556.22,0.00049863,120]
[331495313,1720440326992,-500.0,0.00049863,120]
[331495314,1720440327060,-500.0,0.00049863,120]
[331495315,1720440327124,-500.0,0.00049863,120]
[331495316,1720440327187,-500.0,0.00049863,120]
[331495317,1720440327248,-658.89,0.00049863,120]
[331495318,1720440327310,-500.0,0.00049863,120]
[331495319,1720440327371,-500.0,0.00049863,120]
[331495320,1720440327434,-500.0,0.00049863,120]
[331495321,1720440327496,-500.0,0.00049863,120]
[331495322,1720440327558,-500.0,0.00049863,120]
[331495323,1720440327618,-500.0,0.00049863,120]
[331495324,1720440327677,-500.0,0.00049863,120]
[331495325,1720440327739,-1000.0,0.00049863,120]
[331495326,1720440327801,-1110.08,0.00049863,120]
[331495327,1720440327863,-287.57,0.00049863,120]
[331495328,1720440327929,-2819.9,0.00049863,120]
[331495329,1720440327998,-500.0,0.00049863,120]
[331495330,1720440328063,-504.00360629,0.00049863,120]
[331495331,1720440328132,-735.58,0.00049863,120]
[331495332,1720440328195,-200.0,0.00049863,120]
[331495333,1720440328260,-500.0,0.00049863,120]
[331495334,1720440328515,-500.0,0.00049863,30]
[331495335,1720440328580,-500.0,0.00049863,120]
[331495336,1720440328645,-568.68000698,0.00049863,120]
[331495337,1720440328710,-500.0,0.00049863,120]
[331495338,1720440328772,-500.0,0.00049863,120]
[331495339,1720440328839,-508.6,0.00049863,120]
[331495340,1720440328904,-500.0,0.00049863,120]
[331495341,1720440328970,-761.41,0.00049863,120]
[331495342,1720440329036,-757.98,0.00049863,120]
[331495343,1720440329101,-500.0,0.00049863,120]
[331495344,1720440329168,-500.0,0.00049863,120]
[331495345,1720440329236,-500.0,0.00049863,120]
[331495346,1720440329302,-744.56,0.00049863,120]
[331495347,1720440329370,-500.0,0.00049863,120]
[331495348,1720440329437,-571.86,0.00049863,120]
[331495349,1720440329503,-820.08,0.00049863,120]
[331495350,1720440329569,-976.88,0.00049863,120]
[331495351,1720440329635,-795.49,0.00049863,120]
[331495352,1720440329704,-633.46,0.00049863,120]
[331495353,1720440329772,-1023.57,0.00049863,120]
[331495354,1720440329836,-2509.7,0.00049863,120]
[331495355,1720440329899,-500.0,0.00049863,120]
[331495356,1720440329967,-500.0,0.00049863,120]
[331495357,1720440330034,-500.0,0.00049863,120]
[331495358,1720440330098,-500.0,0.00049863,120]
[331495359,1720440330163,-500.0,0.00049863,120]
[331495360,1720440330229,-732.16,0.00049863,120]
[331495361,1720440330292,-500.0,0.00049863,120]
[331495362,1720440330356,-500.0,0.00049863,120]
[331495363,1720440330426,-500.0,0.00049863,120]
[331495364,1720440330491,-500.0,0.00049863,120]
[331495365,1720440330556,-596.04,0.00049863,120]
[331495366,1720440330620,-584.19,0.00049863,120]
[331495367,1720440330684,-500.0,0.00049863,120]
[331495368,1720440330749,-500.0,0.00049863,120]
[331495369,1720440330817,-1250.0,0.00049863,120]
[331495370,1720440330882,-192.1,0.00049863,120]
[331495371,1720440330949,-500.0,0.00049863,120]
[331495372,1720440331016,-500.0,0.00049863,120]
[331495373,1720440331081,-500.0,0.00049863,120]
[331495374,1720440331149,-500.0,0.00049863,120]
[331495375,1720440331217,-1319.76,0.00049863,120]
[331495376,1720440331283,-500.0,0.00049863,120]
[331495377,1720440331347,-500.0,0.00049863,120]
[331495378,1720440331414,-500.0,0.00049863,120]
[331495379,1720440331480,-500.0,0.00049863,120]
[331495380,1720440331549,-500.0,0.00049863,120]
[331495381,1720440331614,-500.0,0.00049863,120]
[331495382,1720440331676,-501.76080471,0.00049863,120]
[331495383,1720440331736,-500.0,0.00049863,120]
[331495384,1720440331796,-500.0,0.00049863,120]
[331495385,1720440331854,-500.0,0.00049863,120]
[331495386,1720440331914,-777.23,0.00049863,120]
[331495387,1720440331976,-611.43844257,0.00049863,120]
[331495388,1720440332037,-500.0,0.00049863,120]
[331495389,1720440332096,-786.03,0.00049863,120]
[331495390,1720440332156,-500.0,0.00049863,120]
[331495391,1720440332215,-1320.46,0.00049863,120]
[331495392,1720440332275,-993.73,0.00049863,120]
[331495393,1720440332335,-503.61591054,0.00049863,120]
[331495394,1720440332392,-857.25,0.00049863,120]
[331495395,1720440332448,-501.93020731,0.00049863,120]
[331495396,1720440332504,-500.0,0.00049863,120]
[331495397,1720440332560,-189.01246524,0.00049876,30]
[331495398,1720440332621,-163.98024599,0.0004991,30]
[331495399,1720440332688,-417.66244959,0.0004995,30]
[331495400,1720440332758,-417.66244959,0.00049963,30]
[331495401,1720440332830,-679.25331282,0.00049985,30]
[331495402,1720440332902,-679.25331282,0.00049986,30]
[331495403,1720440332976,-815.15023547,0.0004999,30]
[331495404,1720440333052,-2031.0,0.0005,120]
[331495405,1720440333119,-2000.0,0.0005,120]
[331495406,1720440333185,-2000.0,0.0005,120]
[331495407,1720440333251,-2000.0,0.0005,120]
[331495408,1720440333316,-250.4255189,0.0005,120]
[331495409,1720440333382,-38923.0,0.0005,30]
[331495410,1720440333448,-150.0,0.0005,120]
[331495411,1720440333517,-200.0,0.0005,120]
[331495412,1720440333587,-275.22635723,0.00050015,60]
[331495413,1720440333654,-275.22635723,0.0005005,60]
[331495414,1720440333720,-5732.02,0.00050136,120]
[331495415,1720440333786,-4518.2,0.00050136,120]
[331495416,1720440333851,-3467.68,0.00050136,120]
[331495417,1720440333922,-3285.94,0.00050136,120]
[331495418,1720440333994,-843.34,0.00050136,120]
[331495419,1720440334068,-500.0,0.00050136,120]
[331495420,1720440334139,-500.0,0.00050136,120]
[331495421,1720440334209,-579.73,0.00050136,120]
[331495422,1720440334282,-7921.19,0.00050136,120]
[331495423,1720440334350,-500.0,0.00050136,120]
[331495424,1720440334422,-500.0,0.00050136,120]
[331495425,1720440334487,-2995.09,0.00050136,120]
[331495426,1720440334554,-521.56,0.00050136,120]
[331495427,1720440334619,-500.0,0.00050136,120]
[331495428,1720440334684,-4816.6,0.00050136,120]
[331495429,1720440334751,-500.0,0.00050136,120]
[331495430,1720440334816,-500.0,0.00050136,120]
[331495431,1720440334881,-500.0,0.00050136,120]
[331495432,1720440334949,-500.0,0.00050136,120]
[331495433,1720440335014,-500.0,0.00050136,120]
[331495434,1720440335079,-5616.29,0.00050136,120]
[331495435,1720440335147,-4754.74,0.00050136,120]
[331495436,1720440335214,-500.0,0.00050136,120]
[331495437,1720440335473,-500.0,0.00050136,120]
[331495438,1720440335541,-2818.99,0.00050136,120]
[331495439,1720440335608,-3610.51,0.00050136,120]
[331495440,1720440335677,-2101.17,0.00050136,120]
[331495441,1720440335744,-7384.37,0.00050136,120]
[331495442,1720440335809,-965.22,0.00050136,120]
[331495443,1720440335876,-500.0,0.00050136,120]
[331495444,1720440335942,-13611.45,0.00050136,120]
[331495445,1720440336009,-500.0,0.00050136,120]
[331495446,1720440336078,-547.56,0.00050136,120]
[331495447,1720440336142,-500.0,0.00050136,120]
[331495448,1720440336206,-271.6722346,0.00050136,120]
[331495449,1720440336270,-583.78,0.00050136,120]
[331495450,1720440336335,-179.1099811,0.00050136,120]
[331495451,1720440336400,-3854.26,0.00050136,120]
[331495452,1720440336468,-500.0,0.00050136,120]
[331495453,1720440336534,-10162.8,0.00050136,120]
[331495454,1720440336599,-500.0,0.00050136,120]
[331495455,1720440336666,-500.0,0.00050136,120]
[331495456,1720440336729,-938.43,0.00050136,120]
[331495457,1720440336792,-500.0,0.00050136,120]
[331495458,1720440336855,-1124.37,0.00050136,120]
[331495459,1720440336922,-4983.01,0.00050136,120]
[331495460,1720440336989,-500.0,0.00050136,120]
[331495461,1720440337063,-5118.07,0.00050136,120]
[331495462,1720440337133,-500.0,0.00050136,120]
[331495463,1720440337204,-2432.5,0.00050136,120]
[331495464,1720440337271,-500.0,0.00050136,120]
[331495465,1720440337336,-500.0,0.00050136,120]
[331495466,1720440337399,-500.0,0.00050136,120]
[331495467,1720440337470,-500.0,0.00050136,120]
[331495468,1720440337541,-2686.57,0.00050136,120]
[331495469,1720440337609,-5565.77,0.00050136,120]